bitfinex/quotes_BTCUSD_20230110
["timestamp","ask_amount","ask_price","bid_price","bid_amount"]
[1673377187355,0.60197221,17437.0,17436.0,1.057196]
[1673377187602,0.42974039,17437.0,17436.0,1.257196]
[1673377187857,0.42974039,17437.0,17436.0,1.416537]
[1673377188361,0.42960719,17437.0,17436.0,1.416537]
[1673377188859,0.17175612,17437.0,17436.0,1.86711448]
[1673377189117,0.36454708,17438.0,17436.0,1.990063]
[1673377189118,0.19231526,17438.0,17436.0,1.990063]
[1673377189372,0.02055914,17438.0,17437.0,1.17451848]
[1673377190381,0.02055914,17438.0,17437.0,2.45960318]
[1673377190873,0.02055914,17438.0,17437.0,2.53160318]
[1673377191390,0.02055914,17438.0,17437.0,2.33160318]
[1673377194403,0.02055914,17438.0,17437.0,2.90509618]
[1673377194670,0.02055914,17438.0,17437.0,2.19350448]
[1673377194926,0.02055914,17438.0,17437.0,2.52250448]
[1673377197079,0.02055914,17438.0,17437.0,3.15504099]
[1673377197331,0.02055914,17438.0,17437.0,2.99044099]
[1673377199416,0.01625728,17439.0,17437.0,2.35790448]
[1673377199691,0.01625728,17439.0,17438.0,1.33651848]
[1673377199946,0.01625728,17439.0,17438.0,2.48343848]
[1673377200227,0.01625728,17439.0,17438.0,2.65653848]
[1673377200500,0.01625728,17439.0,17438.0,2.89421637]
[1673377200762,0.013474,17443.0,17439.0,0.24877183]
[1673377201024,0.013474,17443.0,17442.0,0.4936]
[1673377201288,0.013474,17443.0,17442.0,2.68785237]
[1673377201566,0.013474,17443.0,17442.0,3.26766637]
[1673377201831,0.013474,17443.0,17442.0,3.02998848]
[1673377202908,0.013474,17443.0,17442.0,3.16898848]
[1673377203159,0.013474,17443.0,17442.0,3.16643448]
[1673377203416,0.0132742,17443.0,17442.0,3.77143448]
[1673377203717,0.0132742,17443.0,17442.0,4.07143448]
[1673377204267,0.0132742,17443.0,17442.0,6.65408215]
[1673377204519,0.00036,17446.0,17443.0,0.93445173]
[1673377204777,0.00036,17446.0,17443.0,4.22743811]
[1673377205331,0.00036,17446.0,17443.0,4.22818956]
[1673377205838,0.00036,17446.0,17443.0,4.36718956]
[1673377206097,0.00036,17446.0,17443.0,5.55664956]
[1673377206361,0.00036,17446.0,17445.0,2.0964]
[1673377206622,0.00036,17446.0,17445.0,6.27961877]
[1673377206895,0.00036,17446.0,17445.0,6.04203738]
[1673377207137,0.00036,17446.0,17445.0,5.04203738]
[1673377207703,0.01829506,17449.0,17446.0,0.805]
[1673377207704,0.15842985,17449.0,17446.0,0.805]
[1673377207924,0.86745734,17449.0,17447.0,0.367841]
[1673377208211,0.54635873,17448.0,17446.0,0.573182]
[1673377208443,0.74318659,17449.0,17447.0,0.359341]
[1673377208722,0.01829506,17449.0,17447.0,0.66066408]
[1673377209004,0.68227446,17449.0,17448.0,0.359341]
[1673377209271,0.74026499,17449.0,17447.0,0.66066408]
[1673377209573,0.01829506,17449.0,17447.0,0.66066408]
[1673377209830,0.01829506,17449.0,17448.0,0.359341]
[1673377210095,0.01829506,17449.0,17448.0,0.36009225]
[1673377210367,0.01829506,17449.0,17448.0,0.359341]
[1673377210639,0.54609927,17449.0,17448.0,0.359341]
[1673377210903,0.54609927,17449.0,17445.0,0.62665445]
[1673377210904,0.52608172,17448.0,17445.0,0.62665445]
[1673377211162,0.163,17446.0,17445.0,0.62665445]
[1673377211419,0.163,17446.0,17444.0,0.04225727]
[1673377211871,0.9702795,17446.0,17444.0,0.04225727]
[1673377212142,0.83014471,17446.0,17444.0,0.54726016]
[1673377212372,0.83014471,17446.0,17445.0,0.359341]
[1673377212631,0.83014471,17446.0,17444.0,0.54726016]
[1673377212925,0.83014471,17446.0,17445.0,0.142]
[1673377213150,0.83014471,17446.0,17444.0,0.54726016]
[1673377213401,0.83014471,17446.0,17445.0,0.142]
[1673377213666,0.83014471,17446.0,17444.0,0.54726016]
[1673377213920,0.83014471,17446.0,17444.0,0.68726016]
[1673377215474,0.83014471,17446.0,17444.0,0.68732016]
[1673377216221,0.53115961,17445.0,17444.0,0.18231727]
[1673377216488,1.1358944,17445.0,17444.0,0.18225727]
[1673377216743,0.69575961,17445.0,17444.0,0.18225727]
[1673377217519,0.69575961,17445.0,17444.0,0.04225727]
[1673377217770,0.89575961,17445.0,17444.0,0.04525727]
[1673377218082,1.19575961,17445.0,17444.0,0.04225727]
[1673377218278,1.19575961,17445.0,17444.0,0.04525727]
[1673377218545,1.36035961,17445.0,17444.0,0.04525727]
[1673377218798,1.93358961,17445.0,17444.0,0.04525727]
[1673377219072,1.40243,17445.0,17444.0,0.04225727]
[1673377219431,2.6501279,17445.0,17444.0,0.04225727]
[1673377219692,2.6691279,17445.0,17444.0,0.05225727]
[1673377219957,2.19955042,17445.0,17444.0,0.04225727]
[1673377220216,2.27654095,17445.0,17444.0,0.05425727]
[1673377220467,2.25754095,17445.0,17444.0,0.04225727]
[1673377220743,2.27654095,17445.0,17444.0,0.05325727]
[1673377221284,3.7847919,17445.0,17444.0,0.05325727]
[1673377221543,4.71440137,17445.0,17444.0,0.05325727]
[1673377221795,2.81249809,17445.0,17444.0,0.05325727]
[1673377223070,2.81249809,17445.0,17444.0,0.07580565]
[1673377223658,3.26307557,17445.0,17444.0,0.07580565]
[1673377224423,4.42243169,17445.0,17444.0,0.07580565]
[1673377224936,4.80078622,17445.0,17444.0,0.07580565]
[1673377225737,4.97301804,17445.0,17444.0,0.07580565]
[1673377226255,0.2,17444.0,17443.0,0.01841173]
[1673377226515,6.18175803,17444.0,17443.0,0.01841173]
[1673377226768,6.75724909,17444.0,17443.0,0.01841173]
[1673377227023,6.92802261,17444.0,17443.0,0.01841173]
[1673377227567,6.75723982,17444.0,17443.0,0.01841173]
[1673377227801,6.92802261,17444.0,17443.0,0.01841173]
[1673377228031,7.06502261,17444.0,17443.0,0.02141173]
[1673377228572,7.06502261,17444.0,17443.0,0.01841173]
[1673377228573,6.32802261,17444.0,17443.0,0.01841173]
[1673377228798,6.6473561,17444.0,17443.0,0.02141173]
[1673377229077,7.39713219,17444.0,17443.0,0.02141173]
[1673377229342,7.45512272,17444.0,17443.0,0.00306]
[1673377229606,7.45512272,17444.0,17438.0,0.00305945]
[1673377229607,0.2,17443.0,17438.0,0.00305945]
[1673377229862,0.3292,17439.0,17438.0,0.00305945]
[1673377230119,2.48961579,17439.0,17438.0,0.00305945]
[1673377230632,2.349481,17439.0,17438.0,0.00305945]
[1673377231213,2.349481,17439.0,17438.0,0.00605945]
[1673377231446,2.349481,17439.0,17438.0,0.00305945]
[1673377231710,2.353481,17439.0,17438.0,0.00805945]
[1673377231973,2.7697991,17439.0,17438.0,0.00805945]
[1673377232235,2.6051991,17439.0,17438.0,0.00805945]
[1673377232493,2.353481,17439.0,17438.0,0.00805945]
[1673377232995,2.90191126,17439.0,17438.0,0.00805945]
[1673377233495,2.353481,17439.0,17438.0,0.00305945]
[1673377234783,2.41339526,17439.0,17438.0,0.00305945]
[1673377235041,2.84016669,17439.0,17438.0,0.00305945]
[1673377235332,2.41339526,17439.0,17438.0,0.00305945]
[1673377236078,3.00734293,17439.0,17438.0,0.00305945]
[1673377237615,2.89604293,17439.0,17438.0,0.00305945]
[1673377239688,3.34479351,17439.0,17438.0,0.00305945]
[1673377240210,3.34479351,17439.0,17437.0,0.00319223]
[1673377240211,3.34079351,17439.0,17437.0,0.00319223]
[1673377240457,1.64622702,17438.0,17437.0,0.00319223]
[1673377240707,2.79314702,17438.0,17437.0,0.00319223]
[1673377240966,2.45906767,17438.0,17437.0,0.00319223]
[1673377241511,2.45906767,17438.0,17437.0,0.00619223]
[1673377241767,2.45906767,17438.0,17437.0,0.00319223]
[1673377242017,2.59506767,17438.0,17437.0,0.00619223]
[1673377242549,3.2345493,17438.0,17437.0,0.00619223]
[1673377242855,2.59506767,17438.0,17437.0,0.00619223]
[1673377243083,3.49586581,17438.0,17437.0,0.00619223]
[1673377243320,2.78936366,17438.0,17437.0,0.00619223]
[1673377243570,2.68026366,17438.0,17437.0,0.00619223]
[1673377244581,2.68026366,17438.0,17437.0,0.00999223]
[1673377245795,3.03852045,17438.0,17437.0,0.00999223]
[1673377246020,2.48596767,17438.0,17437.0,0.00999223]
[1673377247054,3.17876236,17438.0,17437.0,0.00999223]
[1673377248537,2.48596767,17438.0,17437.0,0.00999223]
[1673377249035,3.13662178,17438.0,17437.0,0.00999223]
[1673377249821,2.83662178,17438.0,17437.0,0.00999223]
[1673377250137,0.336,17438.0,17437.0,0.93402683]
[1673377250479,0.136,17438.0,17437.0,1.05568994]
[1673377251183,0.68639312,17439.0,17437.0,1.05268994]
[1673377251490,0.68639312,17439.0,17438.0,0.359341]
[1673377251752,1.25982012,17439.0,17437.0,0.00699223]
[1673377252017,0.68639312,17439.0,17437.0,0.00699223]
[1673377252277,0.55389809,17438.0,17437.0,0.00699223]
[1673377252532,1.46749288,17438.0,17437.0,0.00699223]
[1673377252832,1.74515809,17438.0,17437.0,0.04699223]
[1673377253087,1.74515809,17438.0,17437.0,0.00699223]
[1673377253088,1.73615809,17438.0,17437.0,0.00699223]
[1673377253352,1.22304935,17438.0,17437.0,0.24467012]
[1673377253613,1.61424935,17438.0,17437.0,0.00699223]
[1673377253862,1.61424935,17438.0,17437.0,0.00999223]
[1673377253863,1.62024935,17438.0,17437.0,0.00999223]
[1673377254135,1.62024935,17438.0,17437.0,0.00987414]
[1673377254676,2.19370935,17438.0,17437.0,0.00987414]
[1673377256709,2.36450845,17438.0,17437.0,0.00987414]
[1673377257441,2.88831497,17438.0,17437.0,0.00987414]
[1673377257712,2.18891776,17438.0,17437.0,0.00987414]
[1673377257975,3.40043056,17438.0,17437.0,0.00987414]
[1673377258564,2.9734328,17438.0,17437.0,0.00987414]
[1673377258816,3.40221391,17438.0,17437.0,0.00987414]
[1673377259068,3.90270474,17438.0,17437.0,0.00687414]
[1673377259328,3.90270474,17438.0,17437.0,0.00987414]
[1673377259329,3.61092363,17438.0,17437.0,0.00987414]
[1673377259622,3.47392363,17438.0,17437.0,0.00687414]
[1673377259875,4.00705363,17438.0,17437.0,0.00987414]
[1673377260133,4.52284397,17438.0,17437.0,0.00987414]
[1673377260912,3.72032363,17438.0,17437.0,0.00987414]
[1673377261678,4.23611397,17438.0,17437.0,0.00987414]
[1673377261938,4.23511472,17438.0,17437.0,0.00987414]
[1673377262234,3.72032363,17438.0,17437.0,0.00987414]
[1673377264090,3.72882363,17438.0,17437.0,0.00987414]
[1673377264619,4.30916711,17438.0,17437.0,0.00987414]
[1673377265148,0.23281834,17437.0,17436.0,0.00319223]
[1673377265411,3.3815193,17437.0,17436.0,0.00319223]
[1673377265663,3.43950983,17437.0,17436.0,0.00319223]
[1673377266771,3.43950983,17437.0,17436.0,0.00619223]
[1673377266772,4.44361331,17437.0,17436.0,0.00619223]
[1673377267025,4.0126966,17437.0,17436.0,0.00619223]
[1673377267841,2.79385369,17437.0,17436.0,0.24387012]
[1673377268092,3.14092506,17437.0,17436.0,0.00619223]
[1673377268346,2.62606316,17437.0,17436.0,0.00619223]
[1673377269625,2.92606316,17437.0,17436.0,0.00619223]
[1673377269902,3.23704247,17437.0,17436.0,0.00619223]
[1673377270226,2.92606316,17437.0,17436.0,0.00619223]
[1673377270431,2.80264391,17437.0,17436.0,0.00619223]
[1673377270680,3.36119449,17437.0,17436.0,0.00619223]
[1673377270960,2.84633259,17437.0,17436.0,0.00619223]
[1673377271225,3.32062365,17437.0,17436.0,0.00619223]
[1673377278294,3.42534377,17437.0,17436.0,0.00619223]
[1673377279049,2.91235787,17437.0,17436.0,0.00619223]
[1673377279305,2.84633259,17437.0,17436.0,0.00619223]
[1673377279561,2.39758201,17437.0,17436.0,0.00619223]
[1673377279806,3.42667607,17437.0,17436.0,0.00619223]
[1673377280058,3.90096713,17437.0,17436.0,0.00619223]
[1673377281094,5.05027192,17437.0,17436.0,0.00619223]
[1673377281346,5.88357391,17437.0,17435.0,6.66e-05]
[1673377281602,2.77849825,17436.0,17435.0,6e-07]
[1673377281922,4.10021007,17436.0,17434.0,0.34574002]
[1673377282153,1.64349669,17435.0,17432.0,0.00415617]
[1673377282425,0.50581,17433.0,17432.0,0.00400617]
[1673377282679,2.42643069,17433.0,17432.0,0.00400617]
[1673377282934,2.96089274,17433.0,17432.0,0.00400617]
[1673377283231,3.03107542,17433.0,17432.0,0.00400617]
[1673377283438,4.04924844,17433.0,17432.0,0.00400617]
[1673377283953,3.51478639,17433.0,17432.0,0.00400617]
[1673377284729,3.65078639,17433.0,17432.0,0.00400617]
[1673377286252,3.13605469,17433.0,17432.0,0.00400617]
[1673377286506,4.32017153,17433.0,17431.0,0.00400617]
[1673377286758,2.60281489,17432.0,17431.0,0.00400617]
[1673377287030,3.85962889,17432.0,17431.0,0.00400617]
[1673377287280,4.37398466,17432.0,17431.0,0.00400617]
[1673377288517,4.50998466,17432.0,17431.0,0.00400617]
[1673377288734,0.2,17431.0,17430.0,0.16647212]
[1673377289012,3.08467576,17431.0,17430.0,0.16647212]
[1673377289262,3.81292965,17431.0,17430.0,0.16647212]
[1673377289512,3.1197468,17431.0,17430.0,0.16647212]
[1673377289769,2.78787591,17431.0,17430.0,0.16647212]
[1673377290078,3.23229709,17431.0,17430.0,0.16647212]
[1673377290591,2.78787591,17431.0,17430.0,0.16647212]
[1673377290868,3.23225439,17431.0,17430.0,0.16647212]
[1673377291081,2.80400615,17431.0,17430.0,0.16647212]
[1673377291564,2.94000615,17431.0,17430.0,0.16647212]
[1673377291826,3.32202374,17431.0,17430.0,0.16647212]
[1673377292063,3.54334526,17431.0,17430.0,0.16647212]
[1673377292312,2.80400615,17431.0,17430.0,0.16647212]
[1673377292534,2.77120835,17431.0,17430.0,0.16647212]
[1673377293078,3.33567128,17431.0,17430.0,0.16647212]
[1673377293338,3.19853247,17431.0,17430.0,0.16647212]
[1673377293601,3.36993701,17431.0,17430.0,0.16647212]
[1673377293855,3.19853214,17431.0,17430.0,0.16647212]
[1673377294870,3.66993701,17431.0,17430.0,0.16647212]
[1673377295125,3.32717128,17431.0,17430.0,0.16647212]
[1673377295377,2.86572108,17431.0,17430.0,0.16647212]
[1673377295626,3.00919432,17431.0,17430.0,0.16647212]
[1673377296136,3.43781234,17431.0,17430.0,0.16647212]
[1673377296396,3.78069589,17431.0,17430.0,0.16647212]
[1673377296638,3.78069623,17431.0,17430.0,0.16647212]
[1673377296896,3.13781234,17431.0,17430.0,0.16647212]
[1673377297135,2.82696553,17431.0,17430.0,0.16647212]
[1673377297387,3.08424993,17431.0,17430.0,0.16647212]
[1673377297637,2.82696553,17431.0,17430.0,0.16647212]
[1673377298145,3.12696553,17431.0,17430.0,0.16647212]
[1673377299141,2.95568589,17431.0,17430.0,0.16647212]
[1673377299643,3.12696553,17431.0,17430.0,0.16647212]
[1673377300149,2.75570826,17431.0,17430.0,0.77329018]
[1673377300410,0.88125848,17431.0,17430.0,0.88239018]
[1673377300660,0.136,17431.0,17430.0,0.88239018]
[1673377300910,0.136,17431.0,17430.0,1.24173118]
[1673377301196,0.136,17431.0,17430.0,1.55153118]
[1673377301425,1.57373763,17434.0,17430.0,2.02694919]
[1673377301426,1.57404884,17434.0,17430.0,2.02694919]
[1673377301677,0.005,17431.0,17430.0,1.69552615]
[1673377301944,0.005,17431.0,17430.0,1.23303003]
[1673377302250,0.005,17431.0,17430.0,1.59249021]
[1673377302711,0.005,17431.0,17430.0,1.28257103]
[1673377302959,0.005,17431.0,17430.0,1.17287103]
[1673377303228,0.57369,17431.0,17430.0,1.05397103]
[1673377303479,1.05725848,17431.0,17430.0,0.70763003]
[1673377303731,2.55525587,17431.0,17430.0,0.16647212]
[1673377303980,2.74271873,17431.0,17430.0,0.17947212]
[1673377304474,2.72671873,17431.0,17430.0,0.16647212]
[1673377304963,2.73171873,17431.0,17430.0,0.17647212]
[1673377305212,3.12012081,17431.0,17430.0,0.16647212]
[1673377306214,3.29137808,17431.0,17430.0,0.16647212]
[1673377306960,2.897976,17431.0,17430.0,0.16647212]
[1673377307205,3.031976,17431.0,17430.0,0.16847212]
[1673377307696,2.897976,17431.0,17430.0,0.16647212]
[1673377307943,3.033976,17431.0,17430.0,0.16747212]
[1673377308680,2.86277776,17431.0,17430.0,0.16747212]
[1673377308927,1.45498495,17431.0,17430.0,0.88003018]
[1673377309177,1.28338,17431.0,17430.0,0.88003018]
[1673377309674,1.31898495,17431.0,17430.0,0.87903018]
[1673377309927,1.31898495,17431.0,17430.0,0.87992818]
[1673377309928,1.65498495,17431.0,17430.0,0.87992818]
[1673377310677,1.95498495,17431.0,17430.0,0.87992818]
[1673377310927,2.28631652,17431.0,17430.0,0.16819806]
[1673377311199,2.48880636,17431.0,17430.0,0.16737012]
[1673377311752,2.14577502,17431.0,17430.0,0.16737012]
[1673377312989,1.717157,17431.0,17430.0,0.16737012]
[1673377313484,2.1463389,17431.0,17430.0,0.16819806]
[1673377313745,2.48967452,17431.0,17430.0,0.16737012]
[1673377314262,2.3179887,17431.0,17430.0,0.16737012]
[1673377314808,1.5105217,17431.0,17430.0,0.16737012]
[1673377315031,0.56515406,17431.0,17430.0,0.16737012]
[1673377315535,0.56517538,17431.0,17430.0,0.16737012]
[1673377316331,1.3105217,17431.0,17430.0,0.16737012]
[1673377316825,2.1842117,17431.0,17430.0,0.16737012]
[1673377317356,3.05478214,17431.0,17430.0,0.16737012]
[1673377321372,3.48425829,17431.0,17430.0,0.16737012]
[1673377321878,3.82783882,17431.0,17430.0,0.16737012]
[1673377322142,2.82906557,17431.0,17430.0,0.16737012]
[1673377322400,1.3380808,17431.0,17430.0,1.2502886]
[1673377322657,1.3380808,17431.0,17430.0,1.01261071]
[1673377323949,1.59571197,17431.0,17430.0,1.01261071]
[1673377324461,1.3380808,17431.0,17430.0,1.01261071]
[1673377325242,1.59566874,17431.0,17430.0,1.01261071]
[1673377325501,1.3380808,17431.0,17430.0,1.01261071]
[1673377325995,1.3380808,17431.0,17430.0,1.01480919]
[1673377326264,1.3380808,17431.0,17430.0,0.79301071]
[1673377326528,0.99454885,17431.0,17430.0,0.79301071]
[1673377327040,0.99454885,17431.0,17430.0,0.79520919]
[1673377328077,0.99454885,17431.0,17430.0,0.79301071]
[1673377328600,0.73696,17431.0,17430.0,0.79301071]
[1673377331159,0.99454885,17431.0,17430.0,0.79301071]
[1673377332725,0.99454885,17431.0,17430.0,0.79290971]
[1673377333222,1.16635128,17431.0,17430.0,0.79290971]
[1673377333485,1.16635128,17431.0,17430.0,0.16726912]
[1673377333741,1.98084435,17431.0,17430.0,0.16726912]
[1673377334041,2.04070956,17431.0,17430.0,0.16726912]
[1673377334746,3.18808956,17431.0,17430.0,0.16726912]
[1673377335980,3.18808956,17431.0,17430.0,0.16226912]
[1673377336738,3.70244533,17431.0,17430.0,0.16226912]
[1673377337973,3.18808956,17431.0,17430.0,0.16226912]
[1673377338228,3.70244533,17431.0,17430.0,0.16226912]
[1673377339511,3.18808956,17431.0,17430.0,0.16226912]
[1673377340523,3.61777535,17431.0,17430.0,0.16226912]
[1673377340794,3.6176943,17431.0,17430.0,0.16226912]
[1673377341569,2.8440043,17431.0,17430.0,0.16226912]
[1673377341768,2.8440043,17431.0,17430.0,0.67919202]
[1673377341769,2.02573292,17431.0,17430.0,0.67919202]
[1673377342021,1.85388757,17431.0,17430.0,0.67919202]
[1673377343016,2.02577641,17431.0,17430.0,0.67919202]
[1673377344016,2.02577641,17431.0,17430.0,0.6793417]
[1673377344270,2.02577641,17431.0,17430.0,0.67919202]
[1673377344763,1.98198469,17431.0,17430.0,0.67919202]
[1673377345015,2.32579353,17431.0,17430.0,0.67919202]
[1673377345270,2.89948353,17431.0,17430.0,0.16226912]
[1673377346012,3.43510633,17431.0,17430.0,0.16226912]
[1673377346268,3.04344425,17431.0,17430.0,0.16226912]
[1673377346514,3.47320883,17431.0,17430.0,0.16226912]
[1673377346782,2.89953201,17431.0,17430.0,0.16226912]
[1673377347816,3.04344425,17431.0,17430.0,0.16226912]
[1673377349441,3.65747175,17431.0,17430.0,0.16226912]
[1673377351121,3.65747175,17431.0,17430.0,0.14726912]
[1673377352097,4.17182752,17431.0,17430.0,0.14726912]
[1673377355340,3.65747175,17431.0,17430.0,0.14726912]
[1673377356087,4.17182752,17431.0,17430.0,0.14726912]
[1673377356865,3.65747175,17431.0,17430.0,0.14726912]
[1673377357115,2.74344425,17431.0,17430.0,0.14726912]
[1673377357372,2.59955518,17431.0,17430.0,0.85636078]
[1673377357661,3.2012349,17431.0,17430.0,0.85636078]
[1673377357933,2.36968533,17431.0,17430.0,0.85636078]
[1673377358191,2.19774302,17431.0,17430.0,0.85636078]
[1673377358496,2.02582152,17431.0,17430.0,0.85636078]
[1673377358730,1.76796276,17431.0,17430.0,1.07596078]
[1673377359290,1.76796276,17431.0,17430.0,1.43545146]
[1673377359536,1.4601453,17431.0,17430.0,1.43445146]
[1673377359791,1.4701453,17431.0,17430.0,1.43445146]
[1673377360048,1.4601453,17431.0,17430.0,1.43445146]
[1673377360312,1.4751453,17431.0,17430.0,1.46030178]
[1673377360569,1.64704381,17431.0,17430.0,1.46030178]
[1673377362091,1.90490243,17431.0,17430.0,1.35050178]
[1673377362349,1.90490243,17431.0,17430.0,0.99116078]
[1673377362884,2.24870138,17431.0,17430.0,0.99116078]
[1673377363148,2.07682407,17431.0,17430.0,0.99116078]
[1673377364160,2.07682407,17431.0,17430.0,0.28206912]
[1673377364378,2.24876638,17431.0,17430.0,0.17226912]
[1673377364916,2.54876638,17431.0,17430.0,0.17226912]
[1673377365202,4.08681615,17431.0,17430.0,0.17226912]
[1673377365993,4.60117192,17431.0,17430.0,0.17226912]
[1673377366495,4.58617192,17431.0,17430.0,0.14626912]
[1673377366743,4.20781615,17431.0,17430.0,0.14826912]
[1673377367094,4.72217192,17431.0,17430.0,0.14826912]
[1673377368830,4.25632414,17431.0,17430.0,0.14826912]
[1673377370346,3.74196837,17431.0,17430.0,0.14826912]
[1673377370600,4.25632414,17431.0,17430.0,0.14826912]
[1673377372627,4.25632414,17431.0,17430.0,0.148009]
[1673377374053,3.55788107,17431.0,17430.0,0.148009]
[1673377374297,3.9642428,17431.0,17430.0,0.148009]
[1673377374537,3.55788107,17431.0,17430.0,0.148009]
[1673377375059,3.58371275,17431.0,17430.0,0.148009]
[1673377375555,4.08105901,17431.0,17430.0,0.148009]
[1673377375834,5.22898004,17431.0,17430.0,0.148009]
[1673377376084,4.20627716,17431.0,17430.0,0.148009]
[1673377376828,4.3089953,17431.0,17430.0,0.148009]
[1673377378291,4.20627716,17431.0,17430.0,0.148009]
[1673377379530,4.29342198,17431.0,17430.0,0.148009]
[1673377379772,4.80901725,17431.0,17430.0,0.148009]
[1673377380757,4.29342198,17431.0,17430.0,0.148009]
[1673377381053,4.80896168,17431.0,17430.0,0.148009]
[1673377381313,4.29342198,17431.0,17430.0,0.148009]
[1673377381584,4.80896357,17431.0,17430.0,0.148009]
[1673377381851,4.78896357,17431.0,17430.0,0.148009]
[1673377384170,4.1950159,17431.0,17430.0,0.15073041]
[1673377384421,4.1950159,17431.0,17430.0,0.148009]
[1673377384671,4.71056816,17431.0,17430.0,0.148009]
[1673377384910,4.1950159,17431.0,17430.0,0.148009]
[1673377385898,4.71059277,17431.0,17430.0,0.148009]
[1673377386158,5.22616937,17431.0,17430.0,0.148009]
[1673377387512,5.74174839,17431.0,17430.0,0.148009]
[1673377387997,5.22616937,17431.0,17430.0,0.148009]
[1673377392330,5.74174839,17431.0,17430.0,0.148009]
[1673377394101,5.5022478,17431.0,17430.0,0.148009]
[1673377394352,5.72870988,17431.0,17430.0,0.148009]
[1673377394590,5.08579938,17431.0,17430.0,0.148009]
[1673377394845,5.591827,17431.0,17430.0,0.148009]
[1673377395850,5.07624798,17431.0,17430.0,0.148009]
[1673377396353,4.63215263,17431.0,17430.0,0.148009]
[1673377397368,4.97581986,17431.0,17430.0,0.148009]
[1673377397870,5.27581986,17431.0,17430.0,0.148009]
[1673377398366,5.10396809,17431.0,17430.0,0.148009]
[1673377398622,5.53356274,17431.0,17430.0,0.148009]
[1673377399114,5.7913952,17431.0,17430.0,0.148009]
[1673377399333,5.36175284,17431.0,17430.0,0.14814506]
[1673377399802,5.36175284,17431.0,17430.0,0.148009]
[1673377400294,4.45388359,17431.0,17430.0,0.86327385]
[1673377400548,2.04799367,17431.0,17430.0,0.86340991]
[1673377400800,1.70418483,17431.0,17430.0,1.22275091]
[1673377401564,1.87605235,17431.0,17430.0,1.22275091]
[1673377401832,1.87605235,17431.0,17430.0,0.86340991]
[1673377402082,1.87605235,17431.0,17430.0,0.86327385]
[1673377402847,1.87605235,17431.0,17430.0,0.86340991]
[1673377403091,1.87605235,17431.0,17430.0,0.86327385]
[1673377406144,1.87605235,17431.0,17430.0,0.86340991]
[1673377406618,1.87605235,17431.0,17430.0,0.86332889]
[1673377407106,1.87605235,17431.0,17430.0,1.22266989]
[1673377407338,1.87605235,17431.0,17430.0,0.86332889]
[1673377407566,1.87605235,17431.0,17430.0,0.86319283]
[1673377411278,1.87605235,17431.0,17430.0,0.86332889]
[1673377412358,1.87605235,17431.0,17430.0,2.01077489]
[1673377412599,1.87605235,17431.0,17430.0,2.47991589]
[1673377413380,1.87605235,17431.0,17430.0,2.92428859]
[1673377413850,1.74005235,17431.0,17430.0,2.92228859]
[1673377414097,1.75505235,17431.0,17430.0,2.95828859]
[1673377414344,1.74005235,17431.0,17430.0,2.92228859]
[1673377414877,1.74005235,17431.0,17430.0,2.31682374]
[1673377415127,1.74005235,17431.0,17430.0,2.91116156]
[1673377415783,1.64005235,17431.0,17430.0,2.31682374]
[1673377416062,1.65405235,17431.0,17430.0,2.35282374]
[1673377416574,1.65405235,17431.0,17430.0,2.46192374]
[1673377416835,1.34005235,17431.0,17430.0,2.42592374]
[1673377417342,1.34005235,17431.0,17430.0,2.63208962]
[1673377417343,1.35405235,17431.0,17430.0,2.63208962]
[1673377417599,1.34005235,17431.0,17430.0,2.60458962]
[1673377417845,1.35305235,17431.0,17430.0,2.64058962]
[1673377418351,1.35305235,17431.0,17430.0,2.47042374]
[1673377419375,1.35305235,17431.0,17430.0,3.13596581]
[1673377419625,1.35305235,17431.0,17430.0,3.01766581]
[1673377419871,1.49318714,17431.0,17430.0,2.57315705]
[1673377420128,1.35305235,17431.0,17430.0,2.57315705]
[1673377421379,1.35305235,17431.0,17430.0,2.57587846]
[1673377423390,1.35305235,17431.0,17430.0,3.03910979]
[1673377423640,1.35305235,17431.0,17430.0,2.9824162]
[1673377423909,1.35305235,17431.0,17430.0,2.5393511]
[1673377425144,1.18118483,17431.0,17430.0,2.5393511]
[1673377430429,1.18118483,17431.0,17430.0,2.98241608]
[1673377430704,1.18118483,17431.0,17430.0,2.35340137]
[1673377430959,1.18118483,17431.0,17430.0,2.88795512]
[1673377431193,0.013,17431.0,17430.0,2.88795512]
[1673377431441,0.013,17431.0,17430.0,3.73522895]
[1673377431959,0.013,17431.0,17430.0,2.88795512]
[1673377432204,0.013,17431.0,17430.0,2.63266725]
[1673377436392,0.013,17431.0,17430.0,2.88795512]
[1673377436618,0.013,17431.0,17430.0,3.73526047]
[1673377436855,0.01290001,17431.0,17430.0,3.73526047]
[1673377437601,0.01290001,17431.0,17430.0,2.88795512]
[1673377438616,0.01290001,17431.0,17430.0,3.73526657]
[1673377439120,0.01290001,17431.0,17430.0,2.88795512]
[1673377439369,0.01290001,17431.0,17430.0,3.73526127]
[1673377439633,0.01290001,17431.0,17430.0,4.27142403]
[1673377439872,0.01290001,17431.0,17430.0,3.16883001]
[1673377440838,0.01290001,17431.0,17430.0,2.22759915]
[1673377441099,0.01290001,17431.0,17430.0,2.22259915]
[1673377441345,0.01290001,17431.0,17430.0,1.07515315]
[1673377441591,0.01290001,17431.0,17430.0,1.27243174]
[1673377442099,0.01290001,17431.0,17430.0,1.07243174]
[1673377444159,0.88511732,17432.0,17430.0,0.67709074]
[1673377444427,0.014,17431.0,17430.0,0.71309074]
[1673377444677,0.88511732,17432.0,17430.0,0.67709074]
[1673377445420,0.015,17431.0,17430.0,0.71309074]
[1673377445686,0.215,17431.0,17430.0,0.71309074]
[1673377445955,0.015,17431.0,17430.0,1.07243174]
[1673377446243,0.015,17431.0,17430.0,1.07525853]
[1673377446740,1.25877632,17432.0,17430.0,1.03643174]
[1673377446983,1.25877632,17432.0,17431.0,0.359341]
[1673377447234,1.27377632,17432.0,17430.0,0.70509074]
[1673377447493,1.25877632,17432.0,17430.0,0.67709074]
[1673377447730,0.015,17431.0,17430.0,0.70791753]
[1673377447983,1.45877632,17432.0,17430.0,0.67709074]
[1673377448228,1.25877632,17432.0,17430.0,0.67709074]
[1673377448548,0.69511732,17432.0,17431.0,0.028]
[1673377448729,0.68511732,17432.0,17431.0,0.54733403]
[1673377449483,0.85497415,17433.0,17431.0,0.54733403]
[1673377449789,0.74517415,17433.0,17431.0,0.54747535]
[1673377449987,0.573654,17433.0,17431.0,0.54747535]
[1673377450504,1.20804424,17433.0,17431.0,0.54733403]
[1673377450748,1.38850114,17433.0,17431.0,0.57933403]
[1673377452271,1.64578714,17433.0,17431.0,0.57933403]
[1673377452514,1.38850114,17433.0,17431.0,0.57933403]
[1673377452768,1.64578714,17433.0,17431.0,0.57933403]
[1673377453025,0.2,17432.0,17431.0,0.57933403]
[1673377454270,0.2,17432.0,17431.0,0.54733403]
[1673377454762,0.209,17432.0,17431.0,0.57933403]
[1673377455006,0.009,17432.0,17431.0,0.57947535]
[1673377455260,0.009,17432.0,17431.0,0.93867503]